bitfinex-derivatives/quotes_SOLF0:USTF0_20250509
["timestamp","ask_amount","ask_price","bid_price","bid_amount"]
[1746783106526,1.9454,165.28,165.22,17.30148893]
[1746783106527,1.9701,165.32,165.22,17.30148893]
[1746783106726,5.9067,165.32,165.18,19.18888893]
[1746783106927,5.9067,165.32,165.18,17.30148893]
[1746783107225,5.9067,165.32,165.21,6.0531]
[1746783107424,5.9067,165.32,165.17,1.21087364]
[1746783107721,6.0516,165.26,165.17,1.21087364]
[1746783107920,350.7966,165.31,165.2,17.30148893]
[1746783108325,6.0506,165.28,165.2,17.30148893]
[1746783108528,350.7966,165.31,165.2,17.30148893]
[1746783108827,350.7966,165.31,165.26,6.0512]
[1746783109025,350.7966,165.31,165.17,1.21087364]
[1746783109226,350.7966,165.31,165.22,17.30148893]
[1746783109616,352.6685,165.31,165.22,17.30148893]
[1746783109824,6.0502,165.3,165.17,1.21087364]
[1746783110023,6.0502,165.3,165.22,17.30148893]
[1746783110223,352.6685,165.31,165.22,17.30148893]
[1746783110430,350.7966,165.31,165.29,6.0502]
[1746783110616,350.7966,165.31,165.26,17.30148893]
[1746783110617,1.9701,165.32,165.26,17.30148893]
[1746783111021,1.9701,165.32,165.28,6.0503]
[1746783111222,1.9701,165.32,165.26,17.30148893]
[1746783111423,1.9701,165.32,165.22,1.9909]
[1746783111624,1.9701,165.32,165.25,6.0517]
[1746783111825,1.9701,165.32,165.2,17.30148893]
[1746783112021,6.0505,165.29,165.23,6.0522]
[1746783112222,4.0129,165.31,165.2,17.30148893]
[1746783112727,6.0507,165.28,165.23,6.0522]
[1746783112928,4.0129,165.31,165.2,17.30148893]
[1746783113317,4.0129,165.31,165.28,6.0503]
[1746783113526,1.9701,165.32,165.25,17.30148893]
[1746783113727,3.9266,165.37,165.25,17.30148893]
[1746783114026,5.9275,165.37,165.31,6.0495]
[1746783114431,5.9275,165.37,165.32,1.20977498]
[1746783116229,3.9412,165.37,165.34,6.0484]
[1746783116441,350.7966,165.38,165.32,1.20977498]
[1746783117331,6.006,165.45,165.32,1.20977498]
[1746783117723,6.006,165.45,165.32,3.07557498]
[1746783117929,6.006,165.45,165.32,20.37706391]
[1746783118133,6.006,165.45,165.32,1.20977498]
[1746783118629,6.006,165.45,165.33,17.30148893]
[1746783119132,6.006,165.45,165.32,18.51126391]
[1746783119934,6.0454,165.43,165.39,6.0465]
[1746783120135,6.006,165.45,165.36,17.30148893]
[1746783120337,6.0452,165.43,165.38,6.0467]
[1746783120530,6.0452,165.43,165.35,17.30148893]
[1746783120732,6.006,165.45,165.35,17.30148893]
[1746783121029,6.045,165.44,165.39,6.0462]
[1746783121429,6.0457,165.42,165.37,6.0471]
[1746783121635,6.006,165.45,165.36,480.36948234]
[1746783122031,6.0459,165.41,165.37,6.0473]
[1746783122224,6.006,165.45,165.36,480.36948234]
[1746783123133,6.0465,165.4,165.36,486.41718234]
[1746783123334,6.006,165.45,165.36,497.67097127]
[1746783123535,6.006,165.45,165.36,480.36948234]
[1746783123839,6.006,165.45,165.36,497.67097127]
[1746783124940,3.9412,165.45,165.4,17.30148893]
[1746783125141,350.7966,165.49,165.4,17.30148893]
[1746783125939,350.7966,165.49,165.44,17.30148893]
[1746783126137,3.9357,165.5,165.44,17.30148893]
[1746783126333,6.0417,165.53,165.47,6.0434]
[1746783126534,2.0019,165.56,165.47,6.0434]
[1746783126735,350.7966,165.55,165.44,17.30148893]
[1746783126935,350.7966,165.55,165.47,6.0436]
[1746783127135,350.7966,165.55,165.44,17.30148893]
[1746783127537,6.0422,165.52,165.47,6.0436]
[1746783127741,350.7966,165.55,165.48,17.30148893]
[1746783127938,350.7966,165.55,165.51,17.30148893]
[1746783128139,3.9273,165.61,165.51,17.30148893]
[1746783128738,3.9273,165.61,165.46,479.02]
[1746783129041,352.7846,165.63,165.56,17.30148893]
[1746783129435,350.7966,165.63,165.56,17.30148893]
[1746783129636,352.727,165.68,165.56,478.9]
[1746783129832,352.727,165.68,165.59,17.30148893]
[1746783130735,6.0366,165.67,165.59,17.30148893]
[1746783130939,352.727,165.68,165.59,17.30148893]
[1746783131131,6.0364,165.67,165.61,6.0385]
[1746783131332,534.0,165.78,165.57,1.20794829]
[1746783131333,350.7966,165.77,165.63,17.30148893]
[1746783131537,3.8954,165.79,165.64,5.8684]
[1746783131737,3.8954,165.79,165.68,6.036]
[1746783132040,3.8954,165.79,165.69,17.30148893]
[1746783132340,3.8954,165.79,165.67,478.7]
[1746783132341,3.8954,165.79,165.67,496.00148893]
[1746783132541,3.8954,165.79,165.67,478.7]
[1746783132843,3.8954,165.79,165.59,478.7]
[1746783133343,3.8954,165.79,165.64,17.30148893]
[1746783133545,6.0341,165.74,165.66,6.0367]
[1746783133845,3.8954,165.79,165.6,17.30148893]
[1746783134038,3.8954,165.79,165.7,6.0352]
[1746783134245,3.8954,165.79,165.72,17.30148893]
[1746783134743,3.8954,165.79,165.72,23.33588893]
[1746783135048,3.8954,165.79,165.69,478.7]
[1746783136655,18.36848841,165.78,165.61,479.68765654]
[1746783136847,1.06699948,165.77,165.61,479.68765654]
[1746783137141,17.30148893,165.74,165.61,479.68765654]
[1746783137347,6.0364,165.67,165.61,479.68765654]
[1746783137542,2.0342,165.73,165.61,479.68765654]
[1746783137845,350.7966,165.72,165.61,479.68765654]
[1746783138350,17.30148893,165.71,165.61,479.68765654]
[1746783138546,6.0386,165.61,165.55,6.0405]
[1746783138747,352.7799,165.7,165.53,482.3188]
[1746783139048,351.86438475,165.69,165.53,478.38]
[1746783139241,17.30148893,165.67,165.46,3.8589]
[1746783139444,17.30148893,165.63,165.46,3.8589]
[1746783139647,6.0412,165.54,165.46,3.8589]
[1746783140047,1.9522,165.62,165.47,1.20867831]
[1746783140243,6.0411,165.54,165.47,1.20867831]
[1746783140438,1.9522,165.62,165.47,1.20867831]
[1746783140843,1.9522,165.62,165.49,17.30148893]
[1746783141048,1.9522,165.62,165.5,1.20845921]
[1746783141253,1.9265,165.61,165.5,1.20845921]
[1746783141455,1.9265,165.61,165.53,17.30148893]
[1746783141650,1.9522,165.62,165.53,17.30148893]
[1746783141954,1.9265,165.67,165.57,17.30148893]
[1746783142657,7.9629,165.67,165.57,17.30148893]
[1746783143248,6.0364,165.67,165.61,6.0384]
[1746783143553,1.9265,165.72,165.56,1.9939]
[1746783143754,3.837,165.72,165.56,1.9939]
[1746783143943,3.837,165.72,165.54,478.44]
[1746783144149,1.06559715,165.71,165.54,495.74148893]
[1746783144345,1.06559715,165.71,165.56,6.0404]
[1746783144550,6.0381,165.63,165.56,6.0404]
[1746783144750,350.7966,165.7,165.54,495.74148893]
[1746783144954,350.7966,165.69,165.58,17.30148893]
[1746783145553,6.0367,165.67,165.61,6.0385]
[1746783145951,350.7966,165.69,165.61,6.0385]
[1746783146147,350.7966,165.69,165.59,17.30148893]
[1746783146352,3.837,165.72,165.59,17.30148893]
[1746783146552,1.9265,165.72,165.6,5.8987]
[1746783146747,1.9265,165.72,165.62,6.0379]
[1746783146748,6.0363,165.68,165.62,6.0379]
[1746783146954,6.0363,165.68,165.6,23.20018893]
[1746783147158,6.0355,165.7,165.6,23.20018893]
[1746783147347,1.9265,165.72,165.61,1.20765654]
[1746783147959,350.7966,165.71,165.61,1.20765654]
[1746783148257,6.0381,165.63,165.61,1.20765654]
[1746783148461,352.7852,165.71,165.61,1.20765654]
[1746783148760,6.0375,165.64,165.61,1.20765654]
[1746783149063,350.7966,165.7,165.61,1.20765654]
[1746783149359,350.7966,165.69,165.61,1.20765654]
[1746783150960,6.0374,165.65,165.61,1.20765654]
[1746783151162,350.7966,165.69,165.61,1.20765654]
[1746783152061,6.0382,165.62,165.61,1.20765654]
[1746783152756,368.09808893,165.67,165.54,478.44]
[1746783152961,1.9707,165.61,165.54,478.44]
[1746783153365,6.0399,165.58,165.54,484.4811]
[1746783153560,1.9707,165.61,165.54,484.4811]
[1746783153863,1.9707,165.61,165.54,478.44]
[1746783154368,350.7966,165.6,165.49,6.0426]
[1746783154661,350.7966,165.59,165.5,1.20845921]
[1746783155664,350.7966,165.59,165.5,18.50994814]
[1746783155862,2.0178,165.64,165.54,17.30148893]
[1746783156075,2.0178,165.64,165.5,1.20845921]
[1746783157471,2.0178,165.64,165.55,6.0404]
[1746783157770,2.0178,165.64,165.53,17.30148893]
[1746783157970,2.0178,165.64,165.54,1.20816721]
[1746783159166,1.889,165.66,165.57,17.30148893]
[1746783159362,1.889,165.66,165.55,478.42]
[1746783159559,1.889,165.66,165.58,6.0393]
[1746783159763,1.889,165.66,165.57,17.30148893]
[1746783159963,352.7652,165.69,165.58,1.20787534]
[1746783160269,352.7652,165.69,165.58,3.16727534]
[1746783161962,352.7652,165.69,165.58,20.46876427]
[1746783162974,352.7652,165.69,165.59,6.0391]
[1746783163474,352.7652,165.69,165.58,20.46876427]
[1746783164069,352.7652,165.69,165.6,6.0386]
[1746783164264,352.7652,165.69,165.58,3.16727534]
[1746783164572,352.7652,165.69,165.58,9.20687534]
[1746783164775,352.7652,165.69,165.58,3.16727534]
[1746783164974,352.7652,165.69,165.6,17.30148893]
[1746783165173,6.0375,165.64,165.6,23.34028893]
[1746783165877,352.7652,165.69,165.61,6.0385]
[1746783166077,352.7652,165.69,165.6,17.30148893]
[1746783166279,6.0383,165.62,165.6,17.30148893]
[1746783166471,352.7652,165.69,165.58,9.20657534]
[1746783166671,350.7966,165.68,165.58,3.16727534]
[1746783166871,350.7966,165.68,165.58,1.20787534]
[1746783167277,6.0391,165.6,165.58,1.20787534]
[1746783167476,350.7966,165.67,165.58,1.20787534]
[1746783167676,350.7966,165.66,165.58,1.20787534]
[1746783167877,6.0393,165.59,165.58,1.20787534]
[1746783168072,350.7966,165.64,165.5,23.07728893]
[1746783168273,6.0404,165.56,165.5,29.11958893]
[1746783168477,350.7966,165.63,165.5,29.11958893]
[1746783168679,352.8025,165.62,165.5,29.11958893]
[1746783168871,2.0268,165.61,165.51,6.0422]
[1746783169073,2.0268,165.61,165.5,5.7758]
[1746783169475,350.7966,165.6,165.5,5.7758]
[1746783170274,350.7966,165.6,165.53,17.30148893]
[1746783170979,6.0395,165.59,165.55,6.0407]
[1746783171182,354.7044,165.67,165.55,6.0407]
[1746783171383,350.7966,165.66,165.53,17.30148893]
[1746783171580,6.0396,165.58,165.55,6.0406]
[1746783171781,350.7966,165.66,165.51,1.2083862]
[1746783171979,350.7966,165.65,165.51,1.2083862]
[1746783172284,6.0418,165.52,165.51,1.2083862]
[1746783172474,350.7966,165.62,165.51,1.2083862]
[1746783172679,350.7966,165.61,165.51,1.2083862]
[1746783173184,6.0418,165.52,165.51,1.2083862]
[1746783173584,12.0787,165.59,165.47,478.32]
[1746783173776,350.7966,165.58,165.47,478.32]
[1746783173979,350.7966,165.57,165.4,2.0433]
[1746783174175,6.0432,165.49,165.4,4.0359]
[1746783174375,362.8778,165.56,165.4,4.0359]
[1746783174576,350.7966,165.55,165.4,4.0359]
[1746783174777,6.043,165.49,165.45,6.0441]
[1746783174984,350.7966,165.55,165.43,17.30148893]
[1746783175184,350.7966,165.55,165.47,17.30148893]
[1746783175589,350.7966,165.55,165.44,17.30148893]
[1746783175887,350.7966,165.55,165.52,6.0417]
[1746783176186,350.7966,165.55,165.45,1.20882441]
[1746783176392,1.9758,165.59,165.49,17.30148893]
[1746783176688,1.9758,165.59,165.5,1.9911]
[1746783176981,6.0412,165.54,165.5,1.9911]
[1746783177387,6.0405,165.56,165.51,6.0421]
[1746783177782,1.9758,165.59,165.51,6.0421]
[1746783177988,1.9758,165.59,165.52,6.0417]
[1746783178187,1.9758,165.59,165.5,1.9911]
[1746783178577,6.0408,165.55,165.51,6.042]
[1746783178785,1.9758,165.59,165.5,1.9911]
[1746783179083,1.9758,165.59,165.51,1.0]
[1746783179692,1.9758,165.59,165.52,6.0417]
[1746783179884,1.9758,165.59,165.51,1.0]
[1746783180192,6.041,165.55,165.52,6.0417]
[1746783180492,1.9758,165.59,165.51,1.0]
[1746783180693,6.0407,165.55,165.52,6.0415]
[1746783180992,1.9758,165.59,165.51,1.0]
[1746783181380,6.0418,165.52,165.51,1.0]
[1746783181587,350.7966,165.58,165.51,1.0]
[1746783181790,6.0404,165.56,165.53,6.0412]
[1746783182091,350.7966,165.58,165.51,1.0]
[1746783182285,350.7966,165.64,165.52,3.8274]
[1746783182988,350.7966,165.64,165.52,1.8956]
[1746783184094,6.039,165.6,165.57,6.0399]
[1746783184286,350.7966,165.64,165.54,17.30148893]
[1746783184492,350.7966,165.64,165.55,1.8952]
[1746783184690,350.7966,165.64,165.59,6.0392]
[1746783184890,350.7966,165.64,165.55,1.8952]
[1746783185288,350.7966,165.64,165.58,17.30148893]
[1746783185587,350.7966,165.64,165.59,17.30148893]
[1746783185788,350.7966,165.64,165.56,1.20802126]
[1746783186086,350.7966,165.64,165.56,18.50951019]
[1746783186289,350.7966,165.64,165.61,6.0385]
[1746783186484,350.7966,165.64,165.56,18.50951019]
[1746783186691,356.7088,165.71,165.6,17.30148893]
[1746783186893,6.0372,165.65,165.62,6.0379]
[1746783187197,6.0372,165.65,165.6,17.30148893]
[1746783187397,356.7088,165.71,165.6,17.30148893]
[1746783187991,358.8651,165.71,165.64,17.30148893]
[1746783188187,356.8316,165.71,165.61,3.24505654]
[1746783188387,350.7966,165.71,165.67,17.30148893]
[1746783188587,6.035,165.71,165.67,23.33778893]
[1746783189181,3.8484,165.77,165.68,6.0359]
[1746783189589,6.0348,165.72,165.68,6.0359]
[1746783189893,3.8484,165.77,165.67,17.30148893]
[1746783190083,350.7966,165.76,165.67,17.30148893]
[1746783190287,350.7966,165.76,165.69,6.0356]
[1746783190489,350.7966,165.76,165.67,17.30148893]
[1746783190792,1.9595,165.77,165.68,1.2071463]
[1746783191797,6.0348,165.72,165.68,1.2071463]
[1746783191995,1.9595,165.77,165.68,1.2071463]
[1746783192187,6.0337,165.75,165.7,6.0352]
[1746783192389,1.9595,165.77,165.68,1.2071463]
[1746783192794,6.0339,165.74,165.7,6.0352]
[1746783192990,1.9595,165.77,165.68,1.2071463]
[1746783193194,354.7387,165.81,165.71,17.30148893]
[1746783193892,6.0332,165.76,165.72,6.0343]
[1746783194098,354.7387,165.81,165.71,17.30148893]
[1746783194296,354.7387,165.81,165.71,19.28228893]
[1746783194698,352.8288,165.81,165.71,19.28228893]
[1746783195000,6.0323,165.78,165.73,6.0341]
[1746783195196,352.8288,165.81,165.73,6.0341]
[1746783195391,352.8288,165.81,165.71,19.28228893]
[1746783195590,352.8288,165.81,165.71,17.30148893]
[1746783195793,352.8288,165.81,165.7,478.28]
[1746783195997,350.7966,165.8,165.7,478.28]
[1746783196198,6.0349,165.71,165.7,478.28]
[1746783196801,6.0346,165.72,165.7,478.28]
[1746783197096,350.7966,165.79,165.7,478.28]
[1746783197296,6.0349,165.71,165.7,478.28]
[1746783197800,6.0333,165.76,165.72,6.0342]
[1746783198298,350.7966,165.78,165.71,6.0348]
[1746783198495,2.0322,165.81,165.72,18.50834386]
[1746783198891,2.0322,165.82,165.76,17.30148893]
[1746783199095,2.0322,165.82,165.75,6.0334]
[1746783199295,6.032,165.79,165.73,17.30148893]
[1746783199495,2.0322,165.82,165.72,1.20685493]
[1746783199899,6.032,165.79,165.72,1.20685493]
[1746783200101,2.0322,165.82,165.74,6.0335]
[1746783200399,2.0322,165.82,165.73,17.30148893]
[1746783200789,2.0322,165.82,165.73,19.19268893]
[1746783200997,6.0319,165.8,165.76,6.0328]
[1746783201194,6.0319,165.8,165.73,19.19268893]
[1746783201394,6.0319,165.8,165.73,21.17768893]
[1746783201595,6.0319,165.8,165.76,6.0328]
[1746783201794,6.032,165.79,165.76,6.0328]
[1746783201993,2.0322,165.82,165.76,6.0328]
[1746783202193,2.0322,165.82,165.75,6.0333]
[1746783202900,2.0322,165.82,165.73,3.8762]
[1746783203098,6.0322,165.79,165.73,3.8762]
[1746783203500,2.0322,165.82,165.73,3.8762]
[1746783203702,350.7966,165.83,165.76,17.30148893]
[1746783204403,350.7966,165.83,165.78,6.032]
[1746783204604,6.0312,165.82,165.76,17.30148893]
[1746783204900,1.8822,165.85,165.76,17.30148893]
[1746783205297,350.7966,165.88,165.76,17.30148893]
[1746783205603,350.7966,165.88,165.77,1.20649092]
[1746783205798,6.0299,165.85,165.8,6.0314]
[1746783206502,6.0302,165.84,165.8,6.0314]
[1746783206698,350.7966,165.88,165.81,6.0312]
[1746783206997,350.7966,165.88,165.77,18.50797985]
[1746783207204,350.7966,165.88,165.77,1.20649092]
[1746783207391,1.9097,165.87,165.77,1.20649092]
[1746783207596,6.0319,165.8,165.77,1.20649092]
[1746783208099,6.0323,165.78,165.77,1.20649092]
[1746783208601,352.8466,165.86,165.72,1.20685493]
[1746783208801,350.7966,165.85,165.72,1.20685493]
[1746783209506,1.9408,165.89,165.76,17.30148893]
[1746783209901,1.9408,165.89,165.73,1.865]
[1746783210203,6.029,165.88,165.78,17.30148893]
[1746783210497,1.9408,165.89,165.8,6.0316]
[1746783210698,1.9408,165.89,165.78,17.30148893]
[1746783211004,1.9408,165.89,165.74,1.2067093]
[1746783211192,1.9408,165.89,165.74,18.50819823]
[1746783212296,1.9408,165.89,165.78,17.30148893]
[1746783212491,1.9408,165.89,165.81,17.30148893]
[1746783212700,1.8809,165.95,165.86,6.0294]
[1746783212900,1.9231,165.94,165.84,17.30148893]
[1746783213301,1.9231,165.94,165.82,1.9302]
[1746783213807,1.9231,165.94,165.83,6.0305]
[1746783213808,6.0287,165.88,165.83,6.0305]
[1746783214006,352.7262,165.93,165.82,1.9302]
[1746783214205,350.7966,165.92,165.81,477.92]
[1746783215307,17.30148893,165.9,165.74,1.2067093]
[1746783215610,17.30148893,165.86,165.74,1.2067093]
[1746783215801,5.9709,165.85,165.74,1.2067093]
[1746783216106,6.0329,165.77,165.74,1.2067093]
[1746783216305,350.7966,165.84,165.74,1.2067093]
[1746783216603,350.7966,165.83,165.74,1.2067093]
[1746783217807,6.0327,165.78,165.74,1.2067093]
[1746783218008,350.7966,165.83,165.74,1.2067093]
[1746783219508,6.0324,165.78,165.74,1.2067093]
[1746783219707,350.7966,165.83,165.74,1.2067093]
[1746783219902,350.7966,165.82,165.74,1.2067093]
[1746783220502,6.0325,165.78,165.74,1.2067093]
[1746783220704,350.7966,165.82,165.74,1.2067093]
[1746783221515,350.7966,165.81,165.74,1.2067093]
[1746783221719,6.0334,165.75,165.74,1.2067093]
[1746783222904,6.0342,165.73,165.72,2.41370986]
[1746783223411,350.7966,165.8,165.72,2.41370986]
[1746783223715,350.7966,165.79,165.72,2.41370986]
[1746783224714,1.9563,165.78,165.72,2.41370986]
[1746783225516,1.9563,165.78,165.74,6.0337]
[1746783225718,350.7966,165.79,165.72,2.41370986]
[1746783226017,6.0319,165.8,165.75,6.0334]
[1746783226215,1.9563,165.84,165.72,2.41370986]
[1746783226618,6.0319,165.8,165.72,4.45120986]
[1746783227416,1.9563,165.84,165.72,4.45120986]
[1746783227621,1.9563,165.84,165.72,2.41370986]
[1746783227817,350.7966,165.83,165.72,2.41370986]
[1746783228018,6.0331,165.77,165.72,2.41370986]
[1746783228214,350.7966,165.83,165.72,2.41370986]
[1746783228418,6.0324,165.78,165.72,2.41370986]
[1746783228617,350.7966,165.83,165.72,2.41370986]
[1746783228917,350.7966,165.83,165.73,6.0341]
[1746783229309,350.7966,165.83,165.75,6.0332]
[1746783229514,350.7966,165.83,165.72,2.41370986]
[1746783229817,350.7966,165.83,165.75,6.0334]
[1746783230119,350.7966,165.83,165.72,2.41370986]
[1746783230419,350.7966,165.83,165.73,17.30148893]
[1746783230716,350.7966,165.83,165.73,21.40788893]
[1746783230918,350.7966,165.83,165.79,6.0319]
[1746783231118,1.9563,165.84,165.74,1.9485]
[1746783231517,1.9563,165.84,165.8,6.0315]
[1746783231723,1.9563,165.84,165.75,477.88]
[1746783232012,7.9868,165.84,165.79,6.0319]
[1746783232211,1.9563,165.84,165.75,477.88]
[1746783232407,6.0314,165.81,165.75,477.88]
[1746783232619,350.7966,165.89,165.75,477.88]
[1746783232818,2.018,165.88,165.75,477.88]
[1746783233417,6.0296,165.86,165.77,17.30148893]
[1746783233618,6.0296,165.86,165.81,6.031]
[1746783233817,2.018,165.88,165.81,6.031]
[1746783234120,6.0298,165.86,165.81,6.031]
[1746783234319,6.0298,165.86,165.82,6.0309]
[1746783234519,350.7966,165.89,165.81,17.30148893]
[1746783234720,350.7966,165.89,165.82,3.9437]
[1746783234914,350.7966,165.89,165.86,6.0294]
[1746783235119,5.9387,165.95,165.82,5.9192]
[1746783236016,6.0295,165.86,165.82,5.9192]
[1746783236215,350.7966,165.94,165.82,3.9437]
[1746783236422,5.9387,165.95,165.82,3.9437]
[1746783236423,350.7966,165.93,165.82,3.9437]
[1746783236918,350.7966,165.93,165.82,2.04]
[1746783237118,350.7966,165.92,165.78,19.22968893]
[1746783237621,6.03,165.85,165.81,6.031]
[1746783237824,6.03,165.85,165.78,19.22968893]
[1746783238127,350.7966,165.92,165.84,6.0298]
[1746783238621,6.0285,165.89,165.85,6.0296]
[1746783238822,350.7966,165.92,165.82,17.30148893]
[1746783239222,6.029,165.88,165.82,17.30148893]
[1746783239521,350.7966,165.92,165.82,17.30148893]
[1746783239717,6.0277,165.91,165.87,6.0287]
[1746783239918,6.0277,165.91,165.82,17.30148893]
[1746783240217,6.0273,165.92,165.82,17.30148893]
[1746783240423,2.018,165.95,165.82,17.30148893]
[1746783240820,2.018,165.95,165.86,17.30148893]
[1746783241324,6.0277,165.91,165.87,6.0289]
[1746783241719,6.0277,165.91,165.86,21.13818893]
[1746783241914,2.018,165.95,165.86,21.13818893]
[1746783242114,350.7966,165.98,165.86,21.13818893]
[1746783242317,6.0262,165.95,165.9,6.0279]
[1746783242515,350.7966,165.98,165.87,1.8687]
[1746783242924,6.0268,165.94,165.9,6.0277]
[1746783243126,350.7966,165.98,165.87,1.8687]
[1746783243424,356.8218,165.98,165.94,6.0265]
[1746783243623,6.0252,165.98,165.94,6.0265]
[1746783243818,6.0252,165.98,165.88,17.30148893]
[1746783244021,6.0248,165.99,165.95,6.0261]
[1746783244223,354.7068,166.05,165.92,17.30148893]
[1746783244422,2.037,166.04,165.92,17.30148893]
[1746783245022,350.7966,166.05,165.96,17.30148893]
[1746783245324,354.6323,166.1,166.0,17.30148893]
[1746783245629,354.6323,166.1,165.97,5.8838]
[1746783246729,354.6323,166.1,165.99,6.0247]
[1746783246730,6.023,166.04,165.99,6.0247]
[1746783246928,354.6323,166.1,165.98,17.30148893]
[1746783247229,354.6323,166.1,166.0,6.0241]
[1746783247728,354.6323,166.1,165.98,17.30148893]
[1746783247926,354.6323,166.1,165.97,5.8838]
[1746783248130,354.6323,166.1,165.97,1.9782]
[1746783248332,17.30148893,166.09,165.96,477.64]
[1746783248532,18.36585268,166.09,165.96,477.64]
[1746783248832,354.6323,166.1,165.96,477.64]
[1746783249033,354.6323,166.1,165.96,494.94148893]
[1746783249527,6.0222,166.06,166.01,6.0239]
[1746783249734,6.0222,166.06,165.98,17.30148893]
[1746783249923,352.7635,166.1,166.02,6.0233]
[1746783250122,352.7635,166.1,165.98,17.30148893]
[1746783250532,352.7635,166.1,165.96,477.64]
[1746783250728,352.7635,166.1,165.97,17.30148893]
[1746783250932,6.0239,166.02,165.97,6.0252]
[1746783251132,6.0239,166.02,165.96,477.64]
[1746783251336,352.7635,166.1,165.96,477.64]
[1746783251535,350.7966,166.09,165.96,477.64]
[1746783252238,350.7966,166.09,165.96,483.6658]
[1746783252437,350.7966,166.08,165.96,477.64]
[1746783252934,1.8749,166.07,165.96,477.64]
[1746783253131,6.0239,166.02,165.97,6.0251]
[1746783253331,1.8749,166.07,165.96,477.64]
[1746783254336,350.7966,166.06,165.96,477.64]
[1746783254531,352.756,166.06,165.96,477.64]
[1746783254733,6.0254,165.97,165.96,477.64]
[1746783255237,6.026,165.96,165.91,6.0276]
[1746783255431,350.7966,166.04,165.89,3.919]
[1746783255632,6.0266,165.94,165.89,9.9472]
[1746783255827,350.7966,166.01,165.89,9.9472]
[1746783256037,352.6535,166.0,165.89,3.919]
[1746783256936,6.0269,165.94,165.89,9.9473]
[1746783257138,352.6535,166.0,165.89,3.919]
[1746783258435,7.8816,166.0,165.95,6.0261]
[1746783258637,352.756,166.06,165.91,17.30148893]
[1746783258936,6.0241,166.01,165.91,17.30148893]
[1746783259137,352.7875,166.06,165.95,17.30148893]
[1746783259343,352.7875,166.06,165.96,2.0333]
[1746783259539,352.7875,166.06,165.97,3.7816]
[1746783260146,6.0239,166.02,165.97,3.7816]
[1746783260337,352.7875,166.06,165.97,3.7816]
[1746783260538,6.0226,166.05,166.01,6.024]
[1746783261041,6.0234,166.03,165.99,6.0246]
[1746783261241,1.9757,166.11,165.99,6.0246]
[1746783261444,350.7966,166.1,165.99,6.0246]
[1746783261645,350.7966,166.1,165.97,3.7816]
[1746783261944,350.7966,166.1,165.98,17.30148893]
[1746783262137,6.0221,166.07,166.02,6.0233]
[1746783262338,350.7966,166.1,166.02,6.0233]
[1746783262548,350.7966,166.1,165.98,494.56148893]
[1746783262945,350.7966,166.1,165.98,477.26]
[1746783263743,350.7966,166.1,165.99,6.0245]
[1746783263938,350.7966,166.1,165.98,477.26]
[1746783264245,6.0233,166.03,166.0,6.0243]
[1746783264444,6.0233,166.03,165.98,477.26]
[1746783264645,350.7966,166.1,165.98,477.26]
[1746783264843,350.7966,166.09,165.98,477.26]
[1746783265645,350.7966,166.09,165.98,494.56148893]
[1746783265846,350.7966,166.09,166.03,6.0232]
[1746783266045,350.7966,166.09,165.98,494.56148893]
[1746783266442,6.0219,166.07,166.03,6.023]
[1746783266743,350.7966,166.09,166.03,6.023]
[1746783266950,350.7966,166.09,165.98,477.26]
[1746783267650,6.0223,166.06,165.98,477.26]
[1746783267853,350.7966,166.09,165.98,477.26]
[1746783268249,6.0228,166.05,165.98,477.26]
[1746783268450,350.7966,166.09,165.98,477.26]
[1746783269152,6.0237,166.02,165.99,6.0246]
[1746783269346,350.7966,166.09,165.98,477.26]
[1746783269646,350.7966,166.08,165.98,477.26]
[1746783269854,386.23808893,166.07,165.89,481.1365]
[1746783270153,350.7966,166.06,165.89,481.1365]